[Event "*** Titled Tuesday Blitz"]
[Site "Chess.com"]
[Date "2020.04.28"]
[Round "2"]
[White "Koksik_13"]
[Black "mbachez"]
[Result "0-1"]
[WhiteElo "2698"]
[BlackElo "2496"]
[TimeControl "180+1"]
[EndTime "10:20:30 PDT"]
[Termination "mbachez won by resignation"]

1. d4 {[%clk 0:03:00.9]} 1... Nf6 {[%clk 0:02:59.2]} 2. Bf4 {[%clk 0:03:01.1]}
2... d5 {[%clk 0:02:57.8]} 3. e3 {[%clk 0:03:00.3]} 3... e6 {[%clk 0:02:58]} 4.
c3 {[%clk 0:03:00.5]} 4... Bd6 {[%clk 0:02:57.9]} 5. Bg3 {[%clk 0:03:00]} 5...
O-O {[%clk 0:02:57.7]} 6. Bd3 {[%clk 0:02:59.1]} 6... c5 {[%clk 0:02:57.8]} 7.
Nf3 {[%clk 0:02:58.6]} 7... Qc7 {[%clk 0:02:58]} 8. Nbd2 {[%clk 0:02:58.1]} 8...
Nbd7 {[%clk 0:02:58]} 9. O-O {[%clk 0:02:54]} 9... e5 {[%clk 0:02:58.2]} 10.
dxe5 {[%clk 0:02:54]} 10... Nxe5 {[%clk 0:02:58.3]} 11. Nxe5 {[%clk 0:02:54]}
11... Bxe5 {[%clk 0:02:58.3]} 12. Bxe5 {[%clk 0:02:52.4]} 12... Qxe5 {[%clk
0:02:57.7]} 13. Nf3 {[%clk 0:02:52.7]} 13... Qc7 {[%clk 0:02:50.6]} 14. h3
{[%clk 0:02:52.7]} 14... Rd8 {[%clk 0:02:48.6]} 15. Qa4 {[%clk 0:02:52.1]} 15...
c4 {[%clk 0:02:41.2]} 16. Bc2 {[%clk 0:02:45.4]} 16... Bd7 {[%clk 0:02:37.1]}
17. Qa3 {[%clk 0:02:45.4]} 17... a5 {[%clk 0:02:33.9]} 18. Rad1 {[%clk
0:02:41.1]} 18... b5 {[%clk 0:02:32.7]} 19. Nd4 {[%clk 0:02:28.5]} 19... Rab8
{[%clk 0:02:08.1]} 20. b4 {[%clk 0:02:18.9]} 20... cxb3 {[%clk 0:01:59]} 21.
Qxb3 {[%clk 0:02:18.3]} 21... Rdc8 {[%clk 0:01:56.7]} 22. Rc1 {[%clk 0:02:18.5]}
22... Qc5 {[%clk 0:01:40.1]} 23. a3 {[%clk 0:02:07.2]} 23... Ne4 {[%clk
0:01:35.7]} 24. Bxe4 {[%clk 0:02:03.1]} 24... dxe4 {[%clk 0:01:35.8]} 25. Rfd1
{[%clk 0:02:00.8]} 25... g6 {[%clk 0:01:22.2]} 26. Qb2 {[%clk 0:01:53.3]} 26...
Qc4 {[%clk 0:01:20.5]} 27. Nb3 {[%clk 0:01:50.6]} 27... Be6 {[%clk 0:01:15.8]}
28. Nxa5 {[%clk 0:01:31.5]} 28... Qa4 {[%clk 0:01:10.2]} 29. Qb4 {[%clk
0:01:31.6]} 29... Ra8 {[%clk 0:00:58.5]} 30. Nb7 {[%clk 0:01:27.8]} 30... Qxa3
{[%clk 0:00:55.6]} 31. Qxe4 {[%clk 0:01:02.3]} 31... Rxc3 {[%clk 0:00:42]} 32.
Rxc3 {[%clk 0:01:03.2]} 32... Qxc3 {[%clk 0:00:41.9]} 33. Nd8 {[%clk 0:01:03.7]}
33... Ra1 {[%clk 0:00:36.2]} 34. Rxa1 {[%clk 0:00:58.2]} 34... Qxa1+ {[%clk
0:00:36.3]} 35. Kh2 {[%clk 0:00:59.1]} 35... Bc4 {[%clk 0:00:36.4]} 36. Nc6
{[%clk 0:00:38.6]} 36... Qf6 {[%clk 0:00:36]} 37. f4 {[%clk 0:00:37]} 37... Qe6
{[%clk 0:00:32.1]} 38. Qxe6 {[%clk 0:00:28.5]} 38... Bxe6 {[%clk 0:00:30.1]} 39.
e4 {[%clk 0:00:28.6]} 39... Kf8 {[%clk 0:00:29.4]} 40. Kg3 {[%clk 0:00:28.7]}
40... Ke8 {[%clk 0:00:29.4]} 41. Kf3 {[%clk 0:00:28.1]} 41... Kd7 {[%clk
0:00:29]} 42. Nb4 {[%clk 0:00:25.1]} 42... Kd6 {[%clk 0:00:27]} 43. Nd3 {[%clk
0:00:16.1]} 43... Bc4 {[%clk 0:00:26.1]} 44. e5+ {[%clk 0:00:08.6]} 44... Kd5
{[%clk 0:00:25.5]} 45. Nb4+ {[%clk 0:00:08.7]} 45... Kc5 {[%clk 0:00:25.6]} 46.
Na6+ {[%clk 0:00:08.7]} 46... Kd4 {[%clk 0:00:25.6]} 47. g4 {[%clk 0:00:05]}
47... Kc3 {[%clk 0:00:25.8]} 48. Ke4 {[%clk 0:00:04.5]} 48... b4 {[%clk
0:00:25.8]} 49. Nc5 {[%clk 0:00:03.6]} 49... b3 {[%clk 0:00:25.5]} 50. Na4+
{[%clk 0:00:02.9]} 50... Kb4 {[%clk 0:00:24.9]} 51. Nb2 {[%clk 0:00:02.6]} 51...
Bf1 {[%clk 0:00:24.9]} 52. Ke3 {[%clk 0:00:02.3]} 52... Bxh3 {[%clk 0:00:24.6]}
53. g5 {[%clk 0:00:02.5]} 53... Bf5 {[%clk 0:00:23.6]} 54. Kd4 {[%clk
0:00:02.2]} 54... Be6 {[%clk 0:00:23.4]} 55. Kd3 {[%clk 0:00:01.9]} 55... Kc5
{[%clk 0:00:22.8]} 56. Kc3 {[%clk 0:00:02]} 56... Kd5 {[%clk 0:00:22.9]} 57. Nc4
{[%clk 0:00:01.9]} 57... Ke4 {[%clk 0:00:22.7]} 58. Nd6+ {[%clk 0:00:01.5]}
58... Kxf4 {[%clk 0:00:22.7]} 59. Ne8 {[%clk 0:00:01.4]} 59... Kxe5 {[%clk
0:00:22.4]} 60. Nf6 {[%clk 0:00:02.3]} 60... Kf5 {[%clk 0:00:22.5]} 61. Nxh7
{[%clk 0:00:03.2]} 61... Bd5 {[%clk 0:00:21.2]} 62. Kb2 {[%clk 0:00:03.3]} 62...
Be6 {[%clk 0:00:21.7]} 63. Kc3 {[%clk 0:00:03.5]} 63... Ke4 {[%clk 0:00:22]} 64.
Kb2 {[%clk 0:00:03.8]} 64... Kf3 {[%clk 0:00:21.8]} 65. Nf6 {[%clk 0:00:03.9]}
65... Kf4 {[%clk 0:00:21.3]} 66. Nh7 {[%clk 0:00:04.8]} 66... Bf5 {[%clk
0:00:19.9]} 67. Kc3 {[%clk 0:00:04.4]} 67... Bc2 {[%clk 0:00:19.7]} 68. Kb2
{[%clk 0:00:04.2]} 68... Ke5 {[%clk 0:00:19.5]} 69. Kc3 {[%clk 0:00:03.8]} 69...
Ke6 {[%clk 0:00:19.7]} 70. Nf6 {[%clk 0:00:03]} 70... Ke7 {[%clk 0:00:19.6]} 71.
Nh7 {[%clk 0:00:02.8]} 71... Ke6 {[%clk 0:00:19.7]} 72. Kb2 {[%clk 0:00:02.9]}
72... Kd6 {[%clk 0:00:19.9]} 73. Kc3 {[%clk 0:00:02.9]} 73... Kc5 {[%clk
0:00:19.9]} 74. Kb2 {[%clk 0:00:03.2]} 74... Kb4 {[%clk 0:00:19.7]} 75. Nf6
{[%clk 0:00:03.5]} 75... Bf5 {[%clk 0:00:19.7]} 76. Nh7 {[%clk 0:00:04]} 76...
Be6 {[%clk 0:00:19.7]} 77. Nf6 {[%clk 0:00:04.9]} 77... Kc4 {[%clk 0:00:19.9]}
78. Nh7 {[%clk 0:00:05.3]} 78... Kd4 {[%clk 0:00:20.2]} 79. Nf6 {[%clk
0:00:04.8]} 79... Ke3 {[%clk 0:00:19.5]} 80. Kc3 {[%clk 0:00:04.8]} 80... Kf4
{[%clk 0:00:19.3]} 81. Nh7 {[%clk 0:00:04.6]} 81... Kg4 {[%clk 0:00:19]} 82. Kb2
{[%clk 0:00:04.2]} 82... Kh5 {[%clk 0:00:18.9]} 83. Kc3 {[%clk 0:00:04.4]} 83...
f5 {[%clk 0:00:19]} 84. gxf6 {[%clk 0:00:04]} 84... g5 {[%clk 0:00:18.9]} 85.
Nf8 {[%clk 0:00:03.8]} 85... Bf7 {[%clk 0:00:18.3]} 86. Nd7 {[%clk 0:00:04.1]}
86... Kg6 {[%clk 0:00:18]} 87. Ne5+ {[%clk 0:00:04.1]} 87... Kxf6 {[%clk
0:00:18.2]} 88. Nxf7 {[%clk 0:00:02.2]} 88... Kxf7 {[%clk 0:00:18.1]} 89. Kxb3
{[%clk 0:00:03.1]} 89... g4 {[%clk 0:00:16.8]} 90. Kc3 {[%clk 0:00:04]} 90... g3
{[%clk 0:00:17.2]} 91. Kd3 {[%clk 0:00:04.9]} 91... g2 {[%clk 0:00:17.6]} 92.
Ke2 {[%clk 0:00:05.8]} 92... g1=Q {[%clk 0:00:17.1]} 0-1

[Event "*** Titled Tuesday Blitz"]
[Site "Chess.com"]
[Date "2020.04.28"]
[Round "2"]
[White "Jungle_Jaguar"]
[Black "petrkostenko"]
[Result "1-0"]
[WhiteElo "2634"]
[BlackElo "2286"]
[TimeControl "180+1"]
[EndTime "10:20:31 PDT"]
[Termination "Jungle_Jaguar won by resignation"]

1. e4 {[%clk 0:03:00.9]} 1... c6 {[%clk 0:02:59.9]} 2. d4 {[%clk 0:02:57.5]}
2... d5 {[%clk 0:03:00]} 3. exd5 {[%clk 0:02:58.4]} 3... cxd5 {[%clk 0:02:59.8]}
4. Bd3 {[%clk 0:02:58.5]} 4... Nf6 {[%clk 0:02:59.6]} 5. c3 {[%clk 0:02:59]}
5... Bg4 {[%clk 0:03:00.1]} 6. Qb3 {[%clk 0:02:57]} 6... Qc7 {[%clk 0:03:00.2]}
7. Ne2 {[%clk 0:02:48.2]} 7... e6 {[%clk 0:02:58.2]} 8. Bf4 {[%clk 0:02:46.1]}
8... Qd7 {[%clk 0:02:54]} 9. Bxb8 {[%clk 0:02:44]} 9... a6 {[%clk 0:02:45.7]}
10. Bf4 {[%clk 0:02:41.2]} 10... Bd6 {[%clk 0:02:44.8]} 11. Bxd6 {[%clk
0:02:40.7]} 11... Qxd6 {[%clk 0:02:44.2]} 12. f3 {[%clk 0:02:40.4]} 12... Bh5
{[%clk 0:02:42.9]} 13. O-O {[%clk 0:02:40]} 13... O-O {[%clk 0:02:42.8]} 14. Nd2
{[%clk 0:02:39.2]} 14... Bg6 {[%clk 0:02:42.5]} 15. Bxg6 {[%clk 0:02:38.6]}
15... hxg6 {[%clk 0:02:42.7]} 16. Rfe1 {[%clk 0:02:31.6]} 16... Rab8 {[%clk
0:02:41.2]} 17. Nc1 {[%clk 0:02:30.8]} 17... b6 {[%clk 0:02:39.1]} 18. Nd3
{[%clk 0:02:31.1]} 18... Qc7 {[%clk 0:02:38.1]} 19. Rac1 {[%clk 0:02:27.3]}
19... Rfd8 {[%clk 0:02:36.7]} 20. Qa4 {[%clk 0:02:24]} 20... a5 {[%clk
0:02:31.9]} 21. Qb5 {[%clk 0:02:24]} 21... Ne8 {[%clk 0:02:31.2]} 22. a4 {[%clk
0:02:23.5]} 22... Nd6 {[%clk 0:02:30.5]} 23. Qb3 {[%clk 0:02:24]} 23... Nc4
{[%clk 0:02:30.7]} 24. Qd1 {[%clk 0:02:19.3]} 24... Nd6 {[%clk 0:02:28.6]} 25.
Nf1 {[%clk 0:02:03.2]} 25... Rdc8 {[%clk 0:02:22.1]} 26. Ne3 {[%clk 0:02:02.9]}
26... Qa7 {[%clk 0:02:17.4]} 27. h4 {[%clk 0:01:58.7]} 27... Qe7 {[%clk
0:02:16.3]} 28. g3 {[%clk 0:01:56]} 28... Qd8 {[%clk 0:02:10.4]} 29. Kg2 {[%clk
0:01:55.1]} 29... b5 {[%clk 0:02:05.3]} 30. axb5 {[%clk 0:01:54.4]} 30... Rxb5
{[%clk 0:02:05.4]} 31. Rc2 {[%clk 0:01:49.6]} 31... Rcb8 {[%clk 0:02:03.3]} 32.
Rce2 {[%clk 0:01:47.3]} 32... Nc4 {[%clk 0:02:00.3]} 33. b4 {[%clk 0:01:44.2]}
33... Nxe3+ {[%clk 0:01:55.3]} 34. Rxe3 {[%clk 0:01:44.2]} 34... Rc8 {[%clk
0:01:55.8]} 35. Qd2 {[%clk 0:01:36.5]} 35... Qb6 {[%clk 0:01:53.4]} 36. bxa5
{[%clk 0:01:31.5]} 36... Qxa5 {[%clk 0:01:52.9]} 37. Nc5 {[%clk 0:01:28.4]}
37... Rcb8 {[%clk 0:01:49.4]} 38. Qf2 {[%clk 0:01:26.6]} 38... Rb2 {[%clk
0:01:46.8]} 39. R1e2 {[%clk 0:01:26.9]} 39... Rxe2 {[%clk 0:01:46.5]} 40. Qxe2
{[%clk 0:01:27.8]} 40... Qa1 {[%clk 0:01:46.9]} 41. Qf2 {[%clk 0:01:13.3]} 41...
Rb2 {[%clk 0:01:45]} 42. Re2 {[%clk 0:01:13.7]} 42... Rxe2 {[%clk 0:01:45.1]}
43. Qxe2 {[%clk 0:01:14.6]} 43... Qxc3 {[%clk 0:01:45.5]} 44. Qf2 {[%clk
0:01:14.3]} 44... Qc4 {[%clk 0:01:36.9]} 45. f4 {[%clk 0:01:11.9]} 45... Qc3
{[%clk 0:01:34.9]} 46. Na4 {[%clk 0:01:10.1]} 46... Qd3 {[%clk 0:01:30.4]} 47.
Nb2 {[%clk 0:01:09.6]} 47... Qe4+ {[%clk 0:01:30.4]} 48. Kh2 {[%clk 0:01:09]}
48... Qb1 {[%clk 0:01:29.9]} 49. Qd2 {[%clk 0:01:05.5]} 49... Qe4 {[%clk
0:01:29.3]} 50. Nd1 {[%clk 0:01:04.7]} 50... Kh7 {[%clk 0:01:25.9]} 51. Nf2
{[%clk 0:01:04.1]} 51... Qf3 {[%clk 0:01:25.7]} 52. Nh3 {[%clk 0:01:04.3]} 52...
f6 {[%clk 0:01:25.9]} 53. Ng1 {[%clk 0:01:03]} 53... Qf1 {[%clk 0:01:24.5]} 54.
Qe2 {[%clk 0:01:00]} 54... Qa1 {[%clk 0:01:22.1]} 55. Nf3 {[%clk 0:01:00.4]}
55... Qa3 {[%clk 0:01:20.3]} 56. Kg2 {[%clk 0:00:59.4]} 56... Qd6 {[%clk
0:01:17.9]} 57. Ne1 {[%clk 0:00:53.9]} 57... Qb6 {[%clk 0:01:15.9]} 58. Qe3
{[%clk 0:00:50.2]} 58... Qb2+ {[%clk 0:01:14.2]} 59. Qf2 {[%clk 0:00:50.3]}
59... Qb5 {[%clk 0:01:11.7]} 60. Qe3 {[%clk 0:00:45.8]} 60... Qb2+ {[%clk
0:01:11.1]} 61. Kf3 {[%clk 0:00:44.9]} 61... Qb6 {[%clk 0:01:08.8]} 62. Nd3
{[%clk 0:00:44.1]} 62... Kg8 {[%clk 0:01:06.6]} 63. Nc5 {[%clk 0:00:42.7]} 63...
Kf7 {[%clk 0:01:07.1]} 64. g4 {[%clk 0:00:40.1]} 64... Qd6 {[%clk 0:01:04.9]}
65. g5 {[%clk 0:00:34.4]} 65... Qc6 {[%clk 0:01:03.5]} 66. Qb3 {[%clk
0:00:31.3]} 66... Kg8 {[%clk 0:00:57.9]} 67. Qb7 {[%clk 0:00:21]} 67... Qxb7
{[%clk 0:00:57.9]} 68. Nxb7 {[%clk 0:00:21.1]} 68... Kf7 {[%clk 0:00:58.6]} 69.
Nc5 {[%clk 0:00:18.6]} 69... Ke7 {[%clk 0:00:58.7]} 70. Ke3 {[%clk 0:00:18.1]}
70... Kd6 {[%clk 0:00:58.8]} 71. Nd3 {[%clk 0:00:18.6]} 71... Kc6 {[%clk
0:00:57.2]} 72. Kd2 {[%clk 0:00:19.1]} 72... Kd6 {[%clk 0:00:45.1]} 73. Kc3
{[%clk 0:00:19]} 73... Kc6 {[%clk 0:00:44.7]} 74. Kb4 {[%clk 0:00:19]} 74... Kc7
{[%clk 0:00:39.3]} 75. Kc5 {[%clk 0:00:17.8]} 75... Kd7 {[%clk 0:00:38.5]} 76.
Kb6 {[%clk 0:00:14.9]} 76... Kd6 {[%clk 0:00:38.5]} 77. Kb7 {[%clk 0:00:15.2]}
77... Kd7 {[%clk 0:00:38.6]} 78. Ka7 {[%clk 0:00:12.6]} 78... Kc7 {[%clk
0:00:38]} 79. Ka6 {[%clk 0:00:12.4]} 79... Kc6 {[%clk 0:00:37.8]} 80. Ka5 {[%clk
0:00:12.8]} 80... Kc7 {[%clk 0:00:36.6]} 81. Kb5 {[%clk 0:00:12.9]} 81... Kd7
{[%clk 0:00:36.7]} 82. Kc5 {[%clk 0:00:09.1]} 82... Kc7 {[%clk 0:00:36.7]} 83.
Nf2 {[%clk 0:00:07.3]} 83... Kd7 {[%clk 0:00:35.8]} 84. Ng4 {[%clk 0:00:07.3]}
84... Ke7 {[%clk 0:00:35.5]} 85. Kc6 {[%clk 0:00:07.6]} 85... Kf8 {[%clk
0:00:32]} 86. Kd7 {[%clk 0:00:07.7]} 86... Kf7 {[%clk 0:00:31.7]} 87. Kd6 {[%clk
0:00:08.3]} 87... fxg5 {[%clk 0:00:31.5]} 88. hxg5 {[%clk 0:00:08.4]} 88... Ke8
{[%clk 0:00:31.6]} 89. Kxe6 {[%clk 0:00:08.2]} 89... Kd8 {[%clk 0:00:32]} 90.
Kxd5 {[%clk 0:00:08.6]} 90... Ke7 {[%clk 0:00:32]} 91. Ne5 {[%clk 0:00:09.5]}
91... Kd8 {[%clk 0:00:31.8]} 92. Nxg6 {[%clk 0:00:10.4]} 92... Ke8 {[%clk
0:00:31.6]} 93. Ne5 {[%clk 0:00:11.3]} 93... Ke7 {[%clk 0:00:31.6]} 94. Ke4
{[%clk 0:00:11.2]} 94... Ke6 {[%clk 0:00:31.5]} 95. d5+ {[%clk 0:00:12.1]} 95...
Kd6 {[%clk 0:00:31.5]} 96. Kd4 {[%clk 0:00:12.7]} 96... Ke7 {[%clk 0:00:31.4]}
97. Kc5 {[%clk 0:00:12.1]} 97... Kd8 {[%clk 0:00:31.6]} 98. Kc6 {[%clk
0:00:12.6]} 98... Ke7 {[%clk 0:00:31.2]} 99. Kc7 {[%clk 0:00:12.3]} 99... Kf8
{[%clk 0:00:30.2]} 100. d6 {[%clk 0:00:12.4]} 100... g6 {[%clk 0:00:30.1]} 101.
d7 {[%clk 0:00:12.5]} 101... Kg7 {[%clk 0:00:30.5]} 102. d8=Q {[%clk 0:00:12.7]}
1-0

[Event "*** Titled Tuesday Blitz"]
[Site "Chess.com"]
[Date "2020.04.28"]
[Round "2"]
[White "ChesterF"]
[Black "czasnaszachy"]
[Result "1/2-1/2"]
[WhiteElo "2548"]
[BlackElo "2303"]
[TimeControl "180+1"]
[EndTime "10:20:40 PDT"]
[Termination "Game drawn - insufficient material"]

1. d4 {[%clk 0:02:59.8]} 1... Nf6 {[%clk 0:02:59.5]} 2. c4 {[%clk 0:02:59.5]}
2... g6 {[%clk 0:02:57.1]} 3. Nc3 {[%clk 0:02:59.7]} 3... d5 {[%clk 0:02:56.8]}
4. cxd5 {[%clk 0:03:00.2]} 4... Nxd5 {[%clk 0:02:56.8]} 5. e4 {[%clk 0:03:00.9]}
5... Nxc3 {[%clk 0:02:56.8]} 6. bxc3 {[%clk 0:03:01.8]} 6... Bg7 {[%clk
0:02:56.8]} 7. Bc4 {[%clk 0:03:02.4]} 7... c5 {[%clk 0:02:55.8]} 8. Ne2 {[%clk
0:03:02.7]} 8... O-O {[%clk 0:02:55.1]} 9. Be3 {[%clk 0:03:03.1]} 9... Nc6
{[%clk 0:02:54.8]} 10. h4 {[%clk 0:03:03.1]} 10... Bg4 {[%clk 0:02:26.6]} 11. f3
{[%clk 0:02:59.5]} 11... Na5 {[%clk 0:02:23.6]} 12. Bd3 {[%clk 0:02:55.5]} 12...
Be6 {[%clk 0:02:15.1]} 13. d5 {[%clk 0:02:51]} 13... Bd7 {[%clk 0:02:09.1]} 14.
h5 {[%clk 0:02:51.1]} 14... b6 {[%clk 0:01:50.9]} 15. hxg6 {[%clk 0:02:50]}
15... fxg6 {[%clk 0:01:41.6]} 16. Qd2 {[%clk 0:02:37.6]} 16... e6 {[%clk
0:01:32.4]} 17. Bh6 {[%clk 0:01:38.2]} 17... Qe7 {[%clk 0:01:30.8]} 18. d6
{[%clk 0:01:23.2]} 18... Qf7 {[%clk 0:01:09.6]} 19. Rd1 {[%clk 0:01:19.1]} 19...
Ba4 {[%clk 0:00:59.6]} 20. Rb1 {[%clk 0:01:05.4]} 20... Rad8 {[%clk 0:00:40]}
21. e5 {[%clk 0:01:02.3]} 21... Bxe5 {[%clk 0:00:30.2]} 22. Bxf8 {[%clk
0:01:02.1]} 22... Rxf8 {[%clk 0:00:28.5]} 23. f4 {[%clk 0:00:40.7]} 23... Bxf4
{[%clk 0:00:21.1]} 24. Nxf4 {[%clk 0:00:40]} 24... Qxf4 {[%clk 0:00:20.9]} 25.
Qxf4 {[%clk 0:00:32.2]} 25... Rxf4 {[%clk 0:00:21.8]} 26. Ke2 {[%clk 0:00:32.4]}
26... Nb7 {[%clk 0:00:21.3]} 27. Rh3 {[%clk 0:00:23.5]} 27... Nxd6 {[%clk
0:00:19.6]} 28. Rbh1 {[%clk 0:00:23.8]} 28... Rf7 {[%clk 0:00:19.2]} 29. Re3
{[%clk 0:00:24.1]} 29... Bd7 {[%clk 0:00:17.2]} 30. Re5 {[%clk 0:00:24.1]} 30...
Nf5 {[%clk 0:00:16.7]} 31. Rh3 {[%clk 0:00:22.7]} 31... Kg7 {[%clk 0:00:12.4]}
32. Bc4 {[%clk 0:00:22.4]} 32... Kf6 {[%clk 0:00:11.7]} 33. Re4 {[%clk
0:00:20.5]} 33... Re7 {[%clk 0:00:11]} 34. Bb3 {[%clk 0:00:19.2]} 34... Bc6
{[%clk 0:00:11.1]} 35. Rf4 {[%clk 0:00:17.3]} 35... e5 {[%clk 0:00:10.6]} 36.
Rf1 {[%clk 0:00:17.8]} 36... Kg7 {[%clk 0:00:09.4]} 37. g4 {[%clk 0:00:18.1]}
37... Nd6 {[%clk 0:00:08.8]} 38. Re3 {[%clk 0:00:18.4]} 38... c4 {[%clk
0:00:08.2]} 39. Bc2 {[%clk 0:00:18.4]} 39... Bd7 {[%clk 0:00:07.7]} 40. g5
{[%clk 0:00:18.5]} 40... Bg4+ {[%clk 0:00:07.5]} 41. Ke1 {[%clk 0:00:18]} 41...
Nf5 {[%clk 0:00:05.8]} 42. Re4 {[%clk 0:00:16.1]} 42... Bh5 {[%clk 0:00:05.1]}
43. Rf2 {[%clk 0:00:10.5]} 43... Ng3 {[%clk 0:00:04.3]} 44. Rxc4 {[%clk
0:00:10.2]} 44... Nf5 {[%clk 0:00:01.5]} 45. Be4 {[%clk 0:00:09.3]} 45... Nd6
{[%clk 0:00:01.4]} 46. Rb4 {[%clk 0:00:04.4]} 46... a5 {[%clk 0:00:01.7]} 47.
Rxb6 {[%clk 0:00:03.5]} 47... Nxe4 {[%clk 0:00:01.9]} 48. Rfb2 {[%clk
0:00:03.8]} 48... Nxc3 {[%clk 0:00:02]} 49. Rb7 {[%clk 0:00:03]} 49... Nd5
{[%clk 0:00:01.9]} 50. Rxe7+ {[%clk 0:00:03.1]} 50... Nxe7 {[%clk 0:00:02.8]}
51. Rb7 {[%clk 0:00:03.6]} 51... Kf7 {[%clk 0:00:03.7]} 52. Ra7 {[%clk
0:00:04.5]} 52... Bf3 {[%clk 0:00:03.4]} 53. Rxa5 {[%clk 0:00:04.7]} 53... e4
{[%clk 0:00:03.9]} 54. Re5 {[%clk 0:00:04.3]} 54... Nc6 {[%clk 0:00:03.4]} 55.
Rc5 {[%clk 0:00:04.5]} 55... Nd8 {[%clk 0:00:03.1]} 56. Kf2 {[%clk 0:00:05]}
56... Ke6 {[%clk 0:00:03.3]} 57. Ke3 {[%clk 0:00:03.9]} 57... Nf7 {[%clk
0:00:03.6]} 58. a4 {[%clk 0:00:03.5]} 58... Nd6 {[%clk 0:00:04]} 59. a5 {[%clk
0:00:03]} 59... Nf5+ {[%clk 0:00:04.4]} 60. Kf2 {[%clk 0:00:02.6]} 60... Kd6
{[%clk 0:00:04.6]} 61. Rc1 {[%clk 0:00:01.4]} 61... Bh5 {[%clk 0:00:03.7]} 62.
a6 {[%clk 0:00:01.8]} 62... e3+ {[%clk 0:00:03.8]} 63. Ke1 {[%clk 0:00:01.8]}
63... Bf3 {[%clk 0:00:03.7]} 64. a7 {[%clk 0:00:02.4]} 64... Nd4 {[%clk
0:00:03.4]} 65. Rc3 {[%clk 0:00:02.3]} 65... Nf5 {[%clk 0:00:02.3]} 66. Ra3
{[%clk 0:00:02.6]} 66... Ba8 {[%clk 0:00:02]} 67. Rc3 {[%clk 0:00:02.1]} 67...
Ke5 {[%clk 0:00:02.4]} 68. Rb3 {[%clk 0:00:02.6]} 68... Bd5 {[%clk 0:00:02.3]}
69. Rb8 {[%clk 0:00:03.2]} 69... Kf4 {[%clk 0:00:02.4]} 70. a8=Q {[%clk
0:00:03.1]} 70... Bxa8 {[%clk 0:00:03.1]} 71. Rxa8 {[%clk 0:00:03.9]} 71... Kxg5
{[%clk 0:00:03.6]} 72. Ra7 {[%clk 0:00:04.1]} 72... Kg4 {[%clk 0:00:03.9]} 73.
Rxh7 {[%clk 0:00:04.2]} 73... Kf3 {[%clk 0:00:04.2]} 74. Rh3+ {[%clk 0:00:04]}
74... Kf4 {[%clk 0:00:04.2]} 75. Rh8 {[%clk 0:00:04.2]} 75... g5 {[%clk
0:00:04.5]} 76. Rf8 {[%clk 0:00:04.3]} 76... g4 {[%clk 0:00:04.8]} 77. Ke2
{[%clk 0:00:04.8]} 77... Ke4 {[%clk 0:00:04.4]} 78. Re8+ {[%clk 0:00:04.7]}
78... Kf4 {[%clk 0:00:04.2]} 79. Rf8 {[%clk 0:00:05.6]} 79... Ke4 {[%clk
0:00:04.5]} 80. Rg8 {[%clk 0:00:05.6]} 80... Nd4+ {[%clk 0:00:04.5]} 81. Ke1
{[%clk 0:00:05.2]} 81... Nf3+ {[%clk 0:00:04.8]} 82. Ke2 {[%clk 0:00:05.4]}
82... Nd4+ {[%clk 0:00:05.2]} 83. Ke1 {[%clk 0:00:05.4]} 83... Nf3+ {[%clk
0:00:05.6]} 84. Kf1 {[%clk 0:00:06.1]} 84... Kd3 {[%clk 0:00:05.2]} 85. Rd8+
{[%clk 0:00:04.8]} 85... Ke4 {[%clk 0:00:05.5]} 86. Re8+ {[%clk 0:00:04.9]}
86... Kd3 {[%clk 0:00:05.6]} 87. Rd8+ {[%clk 0:00:05]} 87... Nd4 {[%clk
0:00:05.2]} 88. Kg2 {[%clk 0:00:02.5]} 88... e2 {[%clk 0:00:05.2]} 89. Re8
{[%clk 0:00:03.1]} 89... Kd2 {[%clk 0:00:04.5]} 90. Kg3 {[%clk 0:00:03.5]} 90...
Nc2 {[%clk 0:00:03.6]} 91. Rxe2+ {[%clk 0:00:03.2]} 91... Kxe2 {[%clk
0:00:03.6]} 92. Kxg4 {[%clk 0:00:04.1]} 1/2-1/2